{"text_format":"3","workbook":"xlsx","n_sheets":1,"sheets":["IZDEVUMU ATSKAITE"],"not_rendered":{"defined_names":4},"read":"whole","date_system":"1900"}

{"sheet":"IZDEVUMU ATSKAITE","index":0,"n_rows":22,"n_cols":12,"rows_kept":22,"merged":[[1,2,1,3],[1,5,1,6],[3,2,3,3],[3,6,3,7],[3,10,3,11],[4,2,4,3],[4,6,4,7],[4,10,4,11],[20,2,20,4],[20,6,20,8],[21,2,21,4],[21,6,21,8]]}
[null,"IZDEVUMU ATSKAITE",{"$nulls":8},"Tikai lietošanai birojā"]
[null,"MĒRĶIS:",null,null,"PAZIŅOJUMA NUMURS:",null,null,"APMAKSAS PERIODS","NO:",{"$f":"IF(COUNTA(IzdevumuDati[Datums])=0,\"\",MIN(IzdevumuDati[Datums]))","v":""},"KAM:",{"$f":"IF(COUNTA(IzdevumuDati[Datums])=0,\"\",MAX(IzdevumuDati[Datums]))","v":""}]
[null,"INFORMĀCIJA PAR DARBINIEKU:"]
[null,"VĀRDS",{"$nulls":3},"AMATS",{"$nulls":3},"SSN"]
[null,"NODAĻA",{"$nulls":3},"VADĪTĀJS",{"$nulls":3},"DARBINIEKA ID"]
[]
[null,"Datums","Konts","Apraksts","Viesnīca","Transports","Degviela","Maltītes","Tālrunis","Izklaide","Dažādi","Kopā"]
[{"$nulls":11},{"$f":"SUM(IzdevumuDati[[#This Row],[Viesnīca]:[Dažādi]])","v":{"v":0,"d":"0.00 EUR"}}]
[{"$nulls":11},{"$f":"SUM(IzdevumuDati[[#This Row],[Viesnīca]:[Dažādi]])","v":{"v":0,"d":"0.00 EUR"}}]
[{"$nulls":11},{"$f":"SUM(IzdevumuDati[[#This Row],[Viesnīca]:[Dažādi]])","v":{"v":0,"d":"0.00 EUR"}}]
[{"$nulls":11},{"$f":"SUM(IzdevumuDati[[#This Row],[Viesnīca]:[Dažādi]])","v":{"v":0,"d":"0.00 EUR"}}]
[{"$nulls":11},{"$f":"SUM(IzdevumuDati[[#This Row],[Viesnīca]:[Dažādi]])","v":{"v":0,"d":"0.00 EUR"}}]
[{"$nulls":11},{"$f":"SUM(IzdevumuDati[[#This Row],[Viesnīca]:[Dažādi]])","v":{"v":0,"d":"0.00 EUR"}}]
[{"$nulls":11},{"$f":"SUM(IzdevumuDati[[#This Row],[Viesnīca]:[Dažādi]])","v":{"v":0,"d":"0.00 EUR"}}]
[{"$nulls":11},{"$f":"SUM(IzdevumuDati[[#This Row],[Viesnīca]:[Dažādi]])","v":{"v":0,"d":"0.00 EUR"}}]
[{"$nulls":11},{"$f":"SUM(IzdevumuDati[[#This Row],[Viesnīca]:[Dažādi]])","v":{"v":0,"d":"0.00 EUR"}}]
[{"$nulls":11},{"$f":"SUM(IzdevumuDati[[#This Row],[Viesnīca]:[Dažādi]])","v":{"v":0,"d":"0.00 EUR"}}]
[{"$nulls":11},{"$f":"SUM(IzdevumuDati[[#This Row],[Viesnīca]:[Dažādi]])","v":{"v":0,"d":"0.00 EUR"}}]
[null,"Kopā",null,null,{"$f":"SUBTOTAL(109,IzdevumuDati[Viesnīca])","v":{"v":0,"d":"0.00 EUR"}},{"$f":"SUBTOTAL(109,IzdevumuDati[Transports])","v":{"v":0,"d":"0.00 EUR"}},{"$f":"SUBTOTAL(109,IzdevumuDati[Degviela])","v":{"v":0,"d":"0.00 EUR"}},{"$f":"SUBTOTAL(109,IzdevumuDati[Maltītes])","v":{"v":0,"d":"0.00 EUR"}},{"$f":"SUBTOTAL(109,IzdevumuDati[Tālrunis])","v":{"v":0,"d":"0.00 EUR"}},{"$f":"SUBTOTAL(109,IzdevumuDati[Izklaide])","v":{"v":0,"d":"0.00 EUR"}},{"$f":"SUBTOTAL(109,IzdevumuDati[Dažādi])","v":{"v":0,"d":"0.00 EUR"}},{"$f":"SUBTOTAL(109,IzdevumuDati[Kopā])","v":{"v":0,"d":"0.00 EUR"}}]
[{"$nulls":10},"STARPSUMMA",{"$f":"IzdevumuDati[[#Totals],[Kopā]]","v":{"v":0,"d":"0.00 EUR"}}]
[null,"APSTIPRINĀJA:",{"$nulls":3},"PIEZĪMES: ",{"$nulls":4},"AVANSI",{"v":0,"d":"0.00 EUR"}]
[{"$nulls":10},"KOPĀ",{"$f":"Starpsumma-Avansi","v":{"v":0,"d":"0.00 EUR"}}]